bitfinex/quotes_SOLUSD_20250131
["timestamp","ask_amount","ask_price","bid_price","bid_amount"]
[1738354965305,5.57261365,228.99,228.87,14.06713531]
[1738354965694,6.3259,228.97,228.87,14.06713531]
[1738354965891,0.70415146,228.96,228.89,33.58366126]
[1738354966126,0.70415146,228.98,228.91,13.41184853]
[1738354967098,0.70415146,228.98,228.87,0.65519874]
[1738354967296,4.86846219,228.97,228.86,1.6646]
[1738354967507,0.70415146,228.96,228.88,13.41184853]
[1738354968313,0.70415146,228.96,228.87,13.41184853]
[1738354969428,5.57261365,228.97,228.87,13.41184853]
[1738354969730,5.57261365,228.97,228.87,14.06714547]
[1738354970039,5.57261365,228.97,228.87,13.41184853]
[1738354970211,4.86846219,228.96,228.87,13.41184853]
[1738354970537,0.70415146,228.95,228.87,13.41184853]
[1738354971733,0.70415146,228.95,228.87,14.06714707]
[1738354972806,13.411849,228.96,228.88,13.41184853]
[1738354973005,13.411849,228.96,228.9,13.41184853]
[1738354973206,0.70415146,228.99,228.89,0.6552269]
[1738354973627,13.411849,228.98,228.9,13.41184853]
[1738354973910,0.70415146,228.97,228.9,13.41184853]
[1738354974109,13.411849,228.98,228.92,13.41184853]
[1738354974440,0.70415146,229.0,228.92,13.41184853]
[1738354974909,0.063,228.98,228.92,13.41184853]
[1738354976127,0.063,228.98,228.93,0.65514549]
[1738354976325,0.063,228.98,228.94,13.41184853]
[1738354977134,20.3268,228.98,228.93,13.41184853]
[1738354977536,20.3268,228.98,228.87,20.82696496]
[1738354977721,20.3268,228.98,228.88,33.58366126]
[1738354978037,20.3268,228.98,228.9,13.41184853]
[1738354978222,20.3268,228.98,228.92,13.41184853]
[1738354978417,0.3268,228.98,228.94,13.41184853]
[1738354978618,0.3268,228.98,228.93,0.65510392]
[1738354978619,0.3268,228.98,228.97,13.41184853]
[1738354978935,51.983,229.01,228.99,13.41184853]
[1738354979138,51.983,229.01,229.0,14.06678273]
[1738354979613,51.983,229.01,229.0,13.41184853]
[1738354980430,51.983,229.01,228.96,1.5884]
[1738354980628,0.70415146,229.0,228.96,1.5884]
[1738354980831,20.0,228.98,228.96,1.5884]
[1738354981034,0.70415146,228.97,228.87,1.5884]
[1738354981217,0.70415146,228.97,228.88,0.6552285]
[1738354981726,0.70415146,228.97,228.89,13.41184853]
[1738354981915,0.70415146,228.97,228.87,1.5884]
[1738354982829,0.70415146,228.97,228.85,0.03]
[1738354983020,20.70415146,228.97,228.85,0.03]
[1738354983215,20.0,228.93,228.85,0.03]
[1738354983416,0.70415146,228.92,228.85,0.03]
[1738354983651,0.70415146,228.95,228.85,0.68540735]
[1738354983825,20.0,228.98,228.85,20.85722008]
[1738354984028,0.70415146,228.97,228.86,6.3312]
[1738354984557,0.70415146,228.99,228.87,14.06716934]
[1738354984720,0.70415146,228.99,228.87,34.23898207]
[1738354985049,3.74,229.0,228.87,34.23898207]
[1738354985050,4.44415146,229.0,228.87,34.23898207]
[1738354985350,3.74,229.0,228.89,1.6295]
[1738354985533,3.74,229.0,228.9,0.65507658]
[1738354985729,51.983,229.01,228.93,13.41184853]
[1738354986034,51.983,229.01,228.95,13.41184853]
[1738354986335,51.983,229.01,228.97,13.41184853]
[1738354986526,51.983,229.01,228.94,0.65497758]
[1738354986728,20.0,228.98,228.9,0.65508249]
[1738354986926,20.063,228.98,228.91,13.41184853]
[1738354987126,20.063,228.98,228.93,13.41184853]
[1738354987329,20.063,228.98,228.93,0.65509083]
[1738354987525,20.063,228.98,228.91,13.41184853]
[1738354987734,20.063,228.98,228.92,0.655093]
[1738354988240,0.063,228.98,228.93,33.58366126]
[1738354988429,0.063,228.98,228.95,13.41184853]
[1738354988625,0.063,228.98,228.95,0.65498196]
[1738354988943,0.063,228.98,228.89,1.88048]
[1738354988944,0.063,228.98,228.91,13.41184853]
[1738354989144,0.063,228.98,228.93,13.41184853]
[1738354989341,20.063,228.98,228.95,13.41184853]
[1738354989514,20.063,228.98,228.89,1.6295]
[1738354989721,20.063,228.98,228.9,0.65511428]
[1738354990259,20.063,228.98,228.91,13.41184853]
[1738354990417,0.70415146,228.97,228.91,13.41184853]
[1738354990926,0.70415146,228.97,228.89,1.6295]
[1738354991617,0.70415146,228.97,228.9,13.41184853]
[1738354992822,20.70415146,228.97,228.89,1.6295]
[1738354993022,20.70415146,228.97,228.87,0.03]
[1738354993263,3.78,228.96,228.87,0.03]
[1738354993544,0.70415146,228.95,228.87,0.03]
[1738354996722,1.70415146,228.95,228.87,0.03]
[1738354997059,0.70415146,228.95,228.87,0.03]
[1738354997258,0.70415146,228.96,228.87,0.03]
[1738354998161,0.70415146,228.96,228.87,0.68525019]
[1738354998364,0.70415146,228.96,228.87,0.03]
[1738355005064,0.70415146,228.97,228.87,0.03]
[1738355006171,0.76715146,228.98,228.87,0.03]
[1738355006349,0.76715146,228.98,228.87,0.6852327]
[1738355006556,20.0,228.96,228.87,0.03]
[1738355006745,0.70415146,228.95,228.87,0.03]
[1738355015773,20.70415146,228.95,228.87,0.03]
[1738355016891,0.70415146,228.95,228.87,0.03]
[1738355017054,20.0,228.95,228.87,0.03]
[1738355017254,0.70415146,228.94,228.87,0.03]
[1738355018089,1.749401,228.93,228.87,0.03]
[1738355018493,0.70415146,228.97,228.88,13.41184853]
[1738355018697,20.70415146,228.97,228.9,13.41184853]
[1738355018864,1.749401,228.96,228.9,14.93704853]
[1738355019064,0.70415146,228.95,228.9,14.93704853]
[1738355019270,2.45355246,228.96,228.9,14.93704853]
[1738355019458,1.749401,228.96,228.9,14.93704853]
[1738355020561,0.54782547,228.98,228.92,13.41184853]
[1738355020753,1.812401,228.98,228.92,14.06699169]
[1738355020953,0.063,228.98,228.92,0.65514316]
[1738355021184,0.76715146,228.98,228.92,0.65514316]
[1738355021983,20.0,228.96,228.91,0.65516023]
[1738355023592,20.0,228.96,228.92,13.41184853]
[1738355023766,20.0,228.96,228.93,0.65512067]
[1738355024270,0.063,228.98,228.93,0.65512067]
[1738355024465,0.063,228.98,228.94,13.41184853]
[1738355024667,0.063,228.98,228.97,13.41184853]
[1738355024871,0.063,228.98,228.97,14.06679662]
[1738355025282,0.063,228.98,228.97,0.65494809]
[1738355025483,0.063,228.98,228.96,1.661]
[1738355025665,20.063,228.98,228.96,1.661]
[1738355026070,0.70415146,228.97,228.9,1.5487]
[1738355026266,20.0,228.94,228.9,1.5487]
[1738355026466,0.70415146,228.93,228.9,1.5487]
[1738355026763,4.90495143,228.93,228.87,0.03]
[1738355026964,24.90495143,228.93,228.87,0.03]
[1738355027184,24.90495143,228.93,228.8,13.41184853]
[1738355027185,21.0,228.9,228.76,0.12549]
[1738355027385,1.0,228.85,228.68,27.37801977]
[1738355027568,1.0,228.85,228.74,0.27934151]
[1738355027769,20.0,228.82,228.74,0.27934151]
[1738355028068,0.81950509,228.81,228.74,0.27934151]
[1738355028867,0.81950509,228.81,228.68,0.27955837]
[1738355029267,0.81950509,228.81,228.68,13.6914069]
[1738355029467,4.2028536,228.82,228.69,13.66282853]
[1738355029794,1.81948131,228.81,228.7,0.27938278]
[1738355030191,1.81948131,228.81,228.76,5.43110485]
[1738355030576,20.0,228.78,228.76,5.43110485]
[1738355030925,0.81959946,228.77,228.76,5.43110485]
[1738355031104,1.81959946,228.77,228.76,5.43110485]
[1738355031405,1.81959946,228.77,228.72,1.5458]
[1738355031406,0.53998038,228.77,228.75,5.43110485]
[1738355031701,0.53998038,228.8,228.76,14.98928281]
[1738355031871,4.2028536,228.77,228.76,14.98928281]
[1738355032511,4.74283398,228.77,228.76,14.98928281]
[1738355033192,4.74283398,228.77,228.76,8.47220333]
[1738355033691,11.12573398,228.77,228.76,8.47220333]
[1738355033871,4.74283398,228.77,228.76,8.47220333]
[1738355034073,4.2028536,228.77,228.76,8.47220333]
[1738355034277,0.53998038,228.78,228.74,0.03]
[1738355034594,0.53998038,228.78,228.66,0.65574128]
[1738355035389,71.96,228.79,228.67,13.53733853]
[1738355035689,71.96,228.79,228.68,0.65564759]
[1738355035896,51.96,228.79,228.68,0.65564759]
[1738355036277,20.0,228.76,228.68,0.65564759]
[1738355037795,56.1628536,228.79,228.68,0.65564759]
[1738355038102,51.96,228.79,228.68,0.65564759]
[1738355038997,51.96,228.79,228.73,31.5251705]
[1738355039303,51.96,228.79,228.74,0.65564182]
[1738355040299,4.2028536,228.84,228.75,1.5483]
[1738355040480,4.2028536,228.84,228.76,0.65554689]
[1738355041085,5.15861436,228.86,228.76,0.65554689]
[1738355041283,9.36146796,228.89,228.76,0.65554689]
[1738355041497,9.36146796,228.89,228.77,14.41184853]
[1738355041702,9.36146796,228.89,228.78,0.65532185]
[1738355041898,9.36146796,228.89,228.8,1.0]
[1738355042084,0.063,228.9,228.83,1.6647]
[1738355042288,0.063,228.9,228.84,0.65522604]
[1738355042907,0.063,228.9,228.85,14.41184853]
[1738355043116,0.063,228.9,228.87,13.41184853]
[1738355043312,0.063,228.9,228.89,13.41184853]
[1738355043496,0.063,228.98,228.89,13.41184853]
[1738355043497,0.063,228.98,228.91,13.41184853]
[1738355043701,0.063,228.98,228.93,13.41184853]
[1738355043903,0.063,228.98,228.94,0.65491708]
[1738355044613,0.063,228.98,228.95,13.41184853]
[1738355044797,0.063,228.98,228.96,0.65489015]
[1738355046197,0.063,228.98,228.97,0.65491151]
[1738355046401,0.063,228.98,228.95,13.41184853]
[1738355046597,0.063,228.98,228.96,0.65487217]
[1738355047693,0.063,228.98,228.97,0.65495677]
[1738355047889,0.063,228.98,228.93,0.65494443]
[1738355048220,0.063,228.98,228.9,1.5506]
[1738355048434,20.0,228.94,228.86,0.65500753]
[1738355048920,5.45311798,228.93,228.86,0.65500753]
[1738355049302,5.45311798,228.93,228.87,0.65522439]
[1738355050306,5.45311798,228.93,228.88,0.65519791]
[1738355050491,5.45311798,228.93,228.85,0.65520077]
[1738355050695,20.0,228.9,228.85,0.65520077]
[1738355050895,0.53998038,228.89,228.81,0.6553539]
[1738355051113,4.80674441,228.88,228.79,0.65543443]
[1738355051310,20.0,228.85,228.78,0.65547879]
[1738355051506,20.0,228.85,228.79,0.6555534]
[1738355051810,20.0,228.84,228.77,0.03]
[1738355052003,20.0,228.84,228.77,0.68548377]
[1738355052716,0.53998038,228.94,228.77,0.68548377]
[1738355052895,20.0,228.89,228.78,0.65542014]
[1738355053320,20.0,228.89,228.79,13.41184853]
[1738355053519,20.0,228.89,228.8,0.65538279]
[1738355053723,0.53998038,228.88,228.77,0.03]
[1738355054023,20.0,228.85,228.77,0.03]
[1738355054325,20.0,228.83,228.77,0.03]
[1738355060221,5.45311798,228.86,228.77,0.03]
[1738355060408,2.01512392,228.87,228.77,0.68544463]
[1738355060625,20.0,228.85,228.77,0.68544463]
[1738355061006,5.45311798,228.88,228.78,13.41184853]
[1738355061331,0.60298038,228.9,228.79,0.6553309]
[1738355061631,20.0,228.86,228.79,0.6553309]
[1738355062446,5.45311798,228.89,228.79,0.6553309]
[1738355063041,5.45311798,228.89,228.8,13.41184853]
[1738355063253,5.45311798,228.89,228.81,0.65533928]
[1738355065336,5.45311798,228.89,228.82,0.65539689]
[1738355065512,5.45311798,228.89,228.77,0.03]
[1738355065513,5.45311798,228.89,228.77,0.68537282]
[1738355065720,5.45311798,228.89,228.78,13.41184853]
[1738355066030,5.45311798,228.89,228.79,0.65537298]
[1738355066434,20.0,228.86,228.79,0.65537298]
[1738355066742,0.53998038,228.85,228.77,0.03]
[1738355066943,20.0,228.82,228.77,0.03]
[1738355067322,5.45311798,228.81,228.77,0.03]
[1738355068216,20.0,228.82,228.77,0.03]
[1738355068552,1.10260164,228.87,228.77,0.03]
[1738355068719,25.99309836,228.88,228.77,0.03]
[1738355069033,3.98,228.87,228.77,0.03]
[1738355069235,3.98,228.87,228.77,0.68543894]
[1738355071541,3.98,228.87,228.78,13.41184853]
[1738355071742,3.98,228.87,228.8,14.94224853]
[1738355071955,0.063,228.9,228.81,0.65529208]
[1738355072618,0.063,228.9,228.82,13.41184853]
[1738355072840,0.063,228.9,228.83,0.65525907]
[1738355073840,0.063,228.9,228.84,13.41184853]
[1738355074062,0.063,228.9,228.85,0.65521542]
[1738355074352,0.063,228.9,228.86,13.41184853]
[1738355074518,0.063,228.9,228.88,13.41184853]
[1738355074719,0.063,228.9,228.89,0.65509531]
[1738355074918,0.063,228.9,228.84,0.65513987]
[1738355075115,0.063,228.9,228.85,13.41184853]
[1738355075318,0.063,228.9,228.86,0.65517267]
[1738355075534,0.063,228.9,228.84,13.41184853]
[1738355075728,0.063,228.9,228.85,0.65517451]
[1738355077957,0.063,228.9,228.85,5.02477451]
[1738355078259,0.063,228.9,228.88,1.5697]
[1738355078425,0.063,228.9,228.89,14.0668453]
[1738355078856,5.22161436,228.98,228.89,15.3178253]
[1738355079158,0.063,228.98,228.93,13.41184853]
[1738355079322,0.063,228.98,228.95,13.41184853]
[1738355079521,0.063,228.98,228.97,13.41184853]
[1738355080323,0.063,228.98,228.97,15.05314853]
[1738355089002,0.063,229.01,229.0,13.41184853]
[1738355089200,0.063,229.01,229.0,34.48929234]
[1738355089365,0.063,229.13,229.03,13.41184853]
[1738355089570,0.063,229.13,229.04,0.65456489]
[1738355089984,0.063,229.13,229.05,13.41184853]
[1738355090171,0.063,229.13,229.07,13.41184853]
[1738355090384,0.063,229.13,229.08,0.65454096]
[1738355090770,0.063,229.13,229.09,14.91924853]
[1738355090974,0.063,229.13,229.1,0.65445266]
[1738355091995,0.063,229.13,229.11,13.41184853]
[1738355092176,0.063,229.13,229.12,0.65446859]
[1738355092381,0.063,229.13,229.12,14.06631712]
[1738355094099,0.063,229.13,229.12,0.65446859]
[1738355094304,0.063,229.13,229.1,0.65447971]
[1738355098122,0.063,229.13,229.04,0.65464384]
[1738355098324,20.0,229.12,229.04,0.65464384]
[1738355098623,0.53998038,229.11,229.04,0.65464384]
[1738355098920,0.53998038,229.11,228.99,0.65478334]
[1738355099489,24.19424655,229.12,228.99,0.65478334]
[1738355099799,0.60298038,229.13,228.99,0.65478334]
[1738355099800,20.0,229.08,228.99,0.65478334]
[1738355100001,0.53998038,229.07,228.93,0.6549243]
[1738355100515,4.19424655,229.07,228.93,0.6549243]
[1738355100815,0.53998038,229.06,228.94,13.41184853]
[1738355101011,3.82,229.11,228.96,13.41184853]
[1738355101216,3.82,229.11,228.98,13.41184853]
[1738355101414,0.53998038,229.1,228.93,0.65483596]
[1738355101593,20.0,229.07,228.93,0.65483596]
[1738355101788,0.53998038,229.06,228.94,13.41184853]
[1738355102096,20.0,229.05,228.95,0.65495784]
[1738355103314,3.8,229.11,228.96,13.41184853]
[1738355103502,3.8,229.11,228.98,13.41184853]
[1738355103702,3.8,229.11,229.0,13.41184853]
[1738355103902,0.063,229.13,229.02,13.41184853]
[1738355104103,0.063,229.13,229.06,13.41184853]
[1738355104415,0.063,229.13,229.08,13.41184853]
[1738355104720,0.063,229.13,229.1,13.41184853]
[1738355104926,0.063,229.13,229.12,33.58366126]
[1738355105097,0.063,229.14,229.13,14.66282853]
[1738355105297,0.063,229.14,229.13,36.73986888]
[1738355106103,0.063,229.21,229.18,0.25098]
[1738355106307,0.063,229.21,229.2,13.41184853]
[1738355107199,0.063,229.21,229.2,14.66282853]
[1738355107613,0.063,229.21,229.2,13.53733853]
[1738355107825,0.063,229.21,229.2,13.41184853]
[1738355109419,0.063,229.21,229.2,13.66282853]
[1738355111137,0.063,229.21,229.2,35.08562126]
[1738355111306,6.3914,229.4,229.23,34.91380853]
[1738355111501,6.3914,229.4,229.23,14.31671888]
[1738355111703,0.62310522,229.33,229.23,14.06573888]
[1738355112004,4.19424655,229.3,229.23,14.06573888]
[1738355112628,4.19424655,229.3,229.23,13.41184853]
[1738355112919,4.19424655,229.3,229.2,0.65413752]
[1738355112920,0.53998038,229.29,229.2,0.65413752]
[1738355113126,0.53998038,229.29,229.14,0.65430445]
[1738355113504,0.53998038,229.29,229.15,13.66282853]
[1738355113703,0.53998038,229.29,229.17,13.41184853]
[1738355114017,0.53998038,229.29,229.09,0.65433814]
[1738355114018,21.87342292,229.23,229.09,0.65433814]
[1738355114211,0.53998038,229.22,229.09,0.65433814]
[1738355114419,0.53998038,229.22,229.0,0.65457836]
[1738355114420,24.19424655,229.21,229.0,0.65457836]
[1738355114721,0.53998038,229.2,229.02,20.0]
[1738355115022,0.53998038,229.2,229.03,0.6545749]
[1738355115717,0.53998038,229.2,229.04,13.66282853]
[1738355116028,0.53998038,229.2,229.06,13.41184853]
[1738355116227,20.0,229.18,229.06,0.65458176]
[1738355116412,20.0,229.16,228.99,0.65472743]
[1738355116607,0.53998038,229.15,229.0,13.41184853]
[1738355116810,0.53998038,229.15,229.01,0.65471748]
[1738355117018,0.53998038,229.15,229.02,13.41184853]
[1738355117223,0.53998038,229.15,229.04,13.41184853]
[1738355117433,4.81735177,229.17,229.06,13.41184853]
[1738355117629,4.81735177,229.17,229.07,0.65462357]
[1738355118342,0.60298038,229.16,228.99,0.65470283]
[1738355118543,0.063,229.16,229.0,13.66282853]
[1738355118863,0.063,229.16,229.03,0.25098]
[1738355119059,0.063,229.16,229.05,13.41184853]
[1738355119256,0.063,229.16,229.07,13.41184853]
[1738355119555,0.063,229.16,229.09,13.41184853]
[1738355119728,0.063,229.16,229.11,13.41184853]
[1738355119928,0.063,229.16,229.12,0.65449716]
[1738355121346,0.063,229.16,229.14,13.41184853]
[1738355121551,0.063,229.16,229.13,0.65443269]
[1738355121552,0.063,229.16,229.15,14.06628044]
[1738355122256,0.063,229.16,229.06,0.90541255]
[1738355122468,0.063,229.16,229.06,0.65443255]
[1738355122627,0.063,229.16,229.0,1.65461692]
[1738355122833,0.063,229.16,229.01,13.66282853]
[1738355123055,0.063,229.16,229.03,13.66282853]
[1738355123358,4.81735177,229.15,229.04,0.65460457]
[1738355123651,4.81735177,229.15,228.91,8.0664]
[1738355123652,0.53998038,229.14,228.99,0.65477379]
[1738355123830,0.53998038,229.14,228.92,0.65483475]
[1738355124030,4.81735177,229.13,228.92,0.65483475]
[1738355124354,0.53998038,229.12,228.92,0.65483475]
[1738355124551,1.53998038,229.12,228.92,0.65483475]
[1738355124736,1.0,229.1,228.92,0.65483475]
[1738355124930,4.27998038,229.09,228.93,0.65497991]
[1738355125136,4.27998038,229.09,228.87,20.0]
[1738355125137,9.09733215,229.09,228.87,20.0]
[1738355125331,9.09733215,229.09,228.85,0.65503287]
[1738355125332,1.0,229.07,228.88,0.65504582]
[1738355125543,0.53998038,229.06,228.88,0.65504582]
[1738355125855,5.35733215,229.06,228.89,13.41184853]
[1738355126027,5.35733215,229.06,228.85,0.25098]
[1738355126028,5.35733215,229.06,228.91,13.41184853]
[1738355126351,1.0,229.05,228.92,0.65509539]
[1738355126554,6.96558038,229.04,228.87,13.41184853]
[1738355126731,20.0,229.01,228.89,13.41184853]
[1738355126930,0.53998038,229.0,228.9,0.65513836]
[1738355127148,0.53998038,229.0,228.84,0.65518018]
[1738355127330,0.53998038,229.0,228.85,13.41184853]
[1738355127536,0.53998038,229.0,228.87,13.41184853]
[1738355127746,1.61745865,229.0,228.88,0.65517716]
[1738355128152,20.0,228.97,228.82,13.41184853]
[1738355128369,21.16513923,228.96,228.83,0.65526604]
[1738355128666,25.35733215,228.96,228.83,0.65526604]
[1738355128843,25.35733215,228.96,228.84,13.41184853]
[1738355129033,25.35733215,228.96,228.85,0.65529166]
[1738355130136,0.53998038,229.0,228.87,13.41184853]
[1738355130331,0.53998038,229.0,228.89,13.41184853]
[1738355130545,3.7,229.0,228.9,0.65514174]
[1738355130838,4.23998038,229.0,228.9,0.65514174]
[1738355132055,0.53998038,229.0,228.9,0.65514174]
[1738355132253,23.7,229.01,228.91,13.41184853]
[1738355132451,23.7,229.01,228.92,0.65503852]
[1738355133460,0.53998038,229.0,228.92,0.65503852]
[1738355133642,0.53998038,229.0,228.86,13.41184853]
[1738355133956,0.53998038,229.0,228.87,0.65513399]
[1738355134258,0.53998038,229.0,228.88,13.41184853]
[1738355134456,0.53998038,229.0,228.89,0.65515006]
[1738355134649,0.53998038,229.0,228.9,13.41184853]
[1738355134957,0.53998038,229.0,228.91,0.65509664]
[1738355135163,3.7,229.01,228.91,0.65509664]
[1738355135369,24.23998038,229.01,228.91,0.65509664]
[1738355136153,23.7,229.01,228.92,13.41184853]
[1738355136357,20.0,229.0,228.93,0.65500783]
[1738355136941,4.21998038,229.03,228.93,0.65500783]
[1738355137167,20.0,229.01,228.93,0.65500783]
[1738355138675,20.0,229.01,228.86,0.90608413]
[1738355138881,20.0,229.01,228.88,0.25098]
[1738355139058,20.0,229.01,228.9,13.41184853]
[1738355139374,20.0,229.01,228.92,13.41184853]
[1738355139660,20.0,229.01,228.93,0.65503879]
[1738355140035,20.0,229.01,228.94,13.41184853]
[1738355140240,20.0,229.01,228.96,13.41184853]
[1738355140455,20.0,229.01,228.94,13.41184853]
[1738355140456,6.4256,229.04,228.98,13.41184853]
[1738355140646,6.4256,229.04,228.99,0.65486582]
[1738355142964,6.4256,229.04,228.9,21.80978]
[1738355143165,6.4256,229.04,228.91,0.65497495]
[1738355143166,20.0,229.01,228.91,0.65497495]
[1738355143387,20.0,229.01,228.92,0.03]
[1738355143572,20.0,229.01,228.92,13.44184853]
[1738355143872,20.063,229.01,228.94,13.41184853]
[1738355144060,20.063,229.01,228.95,0.65504952]
[1738355144767,0.53998038,229.0,228.92,0.03]
[1738355145949,0.62515885,228.99,228.88,13.41184853]
[1738355146152,0.62515885,228.99,228.83,0.68522759]
[1738355146153,0.53998038,228.98,228.83,0.68522759]
[1738355146558,2.21882125,228.97,228.83,0.68522759]
[1738355146850,0.53998038,228.96,228.84,13.41184853]
[1738355147070,0.53998038,228.96,228.86,13.41184853]
[1738355147264,0.53998038,228.96,228.87,0.65525129]
[1738355148055,20.0,228.94,228.83,0.68530128]
[1738355148257,0.53998038,228.93,228.83,0.68530128]
[1738355148576,20.0,228.9,228.83,0.03]
[1738355148770,0.53998038,228.89,228.83,0.03]
[1738355148949,0.53998038,228.89,228.81,0.03]
[1738355149380,0.80328038,228.89,228.81,0.03]
[1738355149672,0.80328038,228.89,228.77,0.68551299]
[1738355149887,20.0,228.88,228.77,0.68551299]
[1738355150054,0.53998038,228.87,228.78,0.65550877]
[1738355150668,0.53998038,228.87,228.77,0.03]
[1738355152470,20.53998038,228.88,228.77,0.03]
[1738355155182,20.0,228.86,228.77,0.03]
[1738355155482,20.0,228.84,228.77,0.03]
[1738355155666,0.53998038,228.83,228.77,0.03]
[1738355156071,20.0,228.84,228.77,0.03]
[1738355156273,20.0,228.84,228.77,0.68554294]
[1738355156779,20.0,228.84,228.77,0.03]
[1738355156980,20.0,228.84,228.77,0.6855586]
[1738355157678,0.53998038,228.83,228.77,0.6855586]
[1738355158179,0.53998038,228.83,228.77,0.03]
[1738355159786,37.49966,228.84,228.77,0.03]
[1738355159988,37.49966,228.84,228.77,0.68554465]
[1738355160382,1.37959738,228.89,228.78,13.41184853]
[1738355160568,0.2633,228.89,228.8,13.41184853]
[1738355160769,0.2633,228.89,228.82,13.41184853]
[1738355160982,0.2633,228.89,228.84,13.41184853]
[1738355161298,0.2633,228.89,228.86,13.41184853]
[1738355161466,0.2633,228.89,228.87,0.65523095]
[1738355162406,0.2633,228.89,228.86,0.65531598]
[1738355162591,0.2633,228.89,228.79,1.5871]
[1738355162784,0.2633,228.89,228.81,13.41184853]
[1738355162985,0.2633,228.89,228.83,13.41184853]
[1738355163184,0.2633,228.89,228.84,0.65531416]
[1738355164110,0.2633,228.89,228.85,13.41184853]
[1738355164297,0.2633,228.89,228.87,13.41184853]
[1738355164603,0.2633,228.89,228.88,14.06697771]
[1738355165108,0.2633,228.89,228.88,14.31795771]
[1738355165473,0.2633,228.89,228.88,42.35767044]
[1738355165670,0.063,228.96,228.9,0.25098]
[1738355166002,0.063,228.96,228.92,13.41184853]
[1738355166186,0.063,228.96,228.94,13.41184853]
[1738355166368,0.063,228.96,228.95,14.31768557]
[1738355167808,0.063,229.01,228.96,13.66282853]
[1738355168095,0.063,229.01,228.98,13.66282853]
[1738355168301,0.063,229.01,229.0,13.41184853]
[1738355168798,20.0,228.93,228.81,0.03]
[1738355168980,0.8192086,228.92,228.81,0.47369696]
[1738355169182,20.0,228.89,228.81,0.47369696]
[1738355169494,25.94294147,228.88,228.77,0.47393041]
[1738355169691,25.12361615,228.88,228.77,0.47393041]
[1738355170387,0.81931056,228.91,228.78,0.44390089]
[1738355170696,0.81922177,228.99,228.79,13.66282853]
[1738355171000,3.58,228.95,228.81,0.25098]
[1738355171294,3.58,228.95,228.82,0.44344678]
[1738355171473,4.39907954,228.95,228.82,0.44344678]
[1738355171674,3.58,228.95,228.82,0.44344678]
[1738355171996,3.58,228.95,228.83,13.41184853]
[1738355172174,3.58,228.95,228.84,0.44326288]
[1738355173283,3.58,228.95,228.85,0.44344826]
[1738355173483,3.58,228.95,228.82,0.44344881]
[1738355173687,0.81907468,228.94,228.82,0.44344881]
[1738355173994,3.58,228.95,228.78,0.44351919]
[1738355174195,3.58,228.95,228.8,13.66282853]
[1738355174497,3.58,228.95,228.78,0.44351919]
[1738355174498,4.39903745,228.95,228.82,13.66282853]
[1738355174686,3.58,228.95,228.83,0.44343253]
[1738355175575,0.81903895,228.94,228.84,0.44353623]
[1738355175776,20.0,228.91,228.77,0.03]
[1738355176095,0.81924189,228.9,228.77,0.03]
[1738355176398,0.81924189,228.9,228.77,0.47375741]
[1738355177602,20.81924189,228.9,228.78,0.4439544]
[1738355177900,20.81924189,228.9,228.77,0.03]
[1738355179381,20.81924189,228.9,228.77,0.47384506]
[1738355180398,0.81924189,228.9,228.77,0.47384506]
[1738355180598,3.56,228.9,228.77,0.47384506]
[1738355180991,0.8192465,228.89,228.77,0.47384506]
[1738355181606,0.8192465,228.89,228.78,0.44398485]
[1738355182480,0.8192465,228.89,228.79,0.44401777]
[1738355182885,0.8192465,228.89,228.77,0.03]
[1738355183096,2.5689635,228.89,228.77,0.47391818]
[1738355184106,1.749717,228.89,228.78,0.44390623]
[1738355184604,1.749717,228.89,228.79,13.66282853]
[1738355184788,3.56,228.94,228.81,13.66282853]
[1738355184982,3.56,228.94,228.77,0.03]
[1738355184983,0.81906407,228.93,228.82,0.4434079]
[1738355185318,20.81906407,228.93,228.82,0.4434079]
[1738355185881,3.56,228.94,228.78,40.17181273]
[1738355185882,4.37913929,228.94,228.83,0.44355836]
[1738355186109,4.37913929,228.94,228.8,0.44348783]
[1738355186906,20.0,228.95,228.81,19.61614853]
[1738355187211,4.379139,228.93,228.82,0.44333327]